{"text_format":"1","workbook":"xlsx","n_sheets":3,"sheets":["Приладна дошка","Список обладнання","Поле зведених даних"],"not_rendered":{"charts":0,"images":0,"macros":1,"external_links":0,"defined_names":13,"comments":0,"pivot_tables":1},"unopened":[],"bounds":{"document_bytes":16777216,"sheet_cells":100000,"rows_first":2000,"rows_last":500,"rows_between":2000,"halvings":0,"cell_chars":16384,"cell_head_chars":4096},"cells_cut":0,"cells_raw":0,"read":"whole","date_system":"1900"}

{"sheet":"Приладна дошка","index":0,"n_rows":20,"n_cols":6,"rows_kept":20,"cut":false,"hidden":false,"merged":[]}
[null,"Приладна дошка"]
[]
[]
[null,null,null,null,null,"Загальний рахунок"]
[null,null,null,null,null,{"$f":"GETPIVOTDATA(\"Рахунок\",'Поле зведених даних'!$B$11)","v":3}]
[]
[null,null,null,null,null,"Загальні щомісячні витрати"]
[null,null,null,null,null,{"$f":"GETPIVOTDATA(\"Загальні щомісячні витрати \",'Поле зведених даних'!$B$11)","v":1765.5943035068672}]
[]
[null,null,null,null,null,"Експлуатаційні витрати"]
[null,null,null,null,null,{"$f":"GETPIVOTDATA(\"Експлуатаційні витрати\",'Поле зведених даних'!$B$11)","v":605}]
[]
[null,null,null,null,null,"Щомісячний внесок"]
[null,null,null,null,null,{"$f":"GETPIVOTDATA(\"Щомісячний внесок \",'Поле зведених даних'!$B$11)","v":659.72222222222217}]
[]
[null,null,null,null,null,"Сума платежу"]
[null,null,null,null,null,{"$f":"GETPIVOTDATA(\"Сума платежу\",'Поле зведених даних'!$B$11)","v":1160.5943035068672}]
[]
[null,null,null,null,null,"Поточна вартість"]
[null,null,null,null,null,{"$f":"GETPIVOTDATA(\"Поточна вартість \",'Поле зведених даних'!$B$11)","v":36534.931506849316}]

{"sheet":"Список обладнання","index":1,"n_rows":9,"n_cols":20,"rows_kept":9,"cut":false,"hidden":false,"merged":[]}
[null,"Список обладнання"]
[]
[null,null,null,"Виділити, коли кількість щомісячних внесків, які залишилися, буде менша, ніж: ",20]
[]
[null,"Об'єкт або\nсерійний номер","Опис елемента\n(марка та модель)","Розташування","Cтан","Виробник","Кількість років експлуатації, які залишилися ","Початкова вартість","Перший внесок","Дата придбання або оренди","Термін позики\n(роки)","Кредитна ставка","Щомісячні експлуатаційні витрати","Очікувана вартість до кінцевого терміна договору","Щомісячні внески, які залишилися","Щомісячний внесок","Загальні щомісячні витрати","Річна амортизація\n(пряма лінія)","Mісячна амортизація\n(пряма лінія)","Поточна вартість"]
[null,123,"Марка, модель","Головне відділення","Справжній","Місцевий",5,30000,5000,"2011-01-15",4,0.1,200,20000,{"$f":"IFERROR(SUMPRODUCT(--(DAY(ROW(OFFSET($A$1,,,DATE(YEAR(ОБЛАДНАННЯ[[#This Row],[Дата придбання або оренди]])+ОБЛАДНАННЯ[[#This Row],[Термін позики\n(роки)]],MONTH(ОБЛАДНАННЯ[[#This Row],[Дата придбання або оренди]])-1,DAY(ОБЛАДНАННЯ[[#This Row],[Дата придбання або оренди]]))-TODAY()))+DATE(YEAR(ОБЛАДНАННЯ[[#This Row],[Дата придбання або оренди]])+ОБЛАДНАННЯ[[#This Row],[Термін позики\n(роки)]],MONTH(ОБЛАДНАННЯ[[#This Row],[Дата придбання або оренди]]),DAY(ОБЛАДНАННЯ[[#This Row],[Дата придбання або оренди]]))-1)=DAY(ОБЛАДНАННЯ[[#This Row],[Дата придбання або оренди]]))),0)","v":24},{"$f":"IFERROR(-(ОБЛАДНАННЯ[Початкова вартість]>0)*(ОБЛАДНАННЯ[Початкова вартість]<>ОБЛАДНАННЯ[Перший внесок])*PMT(ОБЛАДНАННЯ[Кредитна ставка]/Кількість_місяців_у_році,ОБЛАДНАННЯ[Термін позики\n(роки)]*Кількість_місяців_у_році,ОБЛАДНАННЯ[Початкова вартість]-ОБЛАДНАННЯ[Перший внесок]),0)","v":634.06458586867973},{"$f":"ОБЛАДНАННЯ[[#This Row],[Щомісячний внесок]]+ОБЛАДНАННЯ[Щомісячні експлуатаційні витрати]","v":834.06458586867973},{"$f":"IFERROR((ОБЛАДНАННЯ[Початкова вартість]>0)*SLN(ОБЛАДНАННЯ[Початкова вартість],ОБЛАДНАННЯ[Очікувана вартість до кінцевого терміна договору],ОБЛАДНАННЯ[Термін позики\n(роки)]),0)","v":2500},{"$f":"IFERROR(ОБЛАДНАННЯ[Річна амортизація\n(пряма лінія)]/Кількість_місяців_у_році,0)","v":208.33333333333334},{"$f":"IFERROR(ОБЛАДНАННЯ[Початкова вартість]-(ОБЛАДНАННЯ[Річна амортизація\n(пряма лінія)]*((TODAY()-ОБЛАДНАННЯ[Дата придбання або оренди])/Кількість_днів_у_році)),0)","v":25027.397260273974}]
[null,234,"Марка, модель 2","Головне відділення","Справжній","Місцевий",4,12500,1500,"2011-03-10",3,7.7499999999999999E-2,120,3000,{"$f":"IFERROR(SUMPRODUCT(--(DAY(ROW(OFFSET($A$1,,,DATE(YEAR(ОБЛАДНАННЯ[[#This Row],[Дата придбання або оренди]])+ОБЛАДНАННЯ[[#This Row],[Термін позики\n(роки)]],MONTH(ОБЛАДНАННЯ[[#This Row],[Дата придбання або оренди]])-1,DAY(ОБЛАДНАННЯ[[#This Row],[Дата придбання або оренди]]))-TODAY()))+DATE(YEAR(ОБЛАДНАННЯ[[#This Row],[Дата придбання або оренди]])+ОБЛАДНАННЯ[[#This Row],[Термін позики\n(роки)]],MONTH(ОБЛАДНАННЯ[[#This Row],[Дата придбання або оренди]]),DAY(ОБЛАДНАННЯ[[#This Row],[Дата придбання або оренди]]))-1)=DAY(ОБЛАДНАННЯ[[#This Row],[Дата придбання або оренди]]))),0)","v":13},{"$f":"IFERROR(-(ОБЛАДНАННЯ[Початкова вартість]>0)*(ОБЛАДНАННЯ[Початкова вартість]<>ОБЛАДНАННЯ[Перший внесок])*PMT(ОБЛАДНАННЯ[Кредитна ставка]/Кількість_місяців_у_році,ОБЛАДНАННЯ[Термін позики\n(роки)]*Кількість_місяців_у_році,ОБЛАДНАННЯ[Початкова вартість]-ОБЛАДНАННЯ[Перший внесок]),0)","v":343.43280007691891},{"$f":"ОБЛАДНАННЯ[[#This Row],[Щомісячний внесок]]+ОБЛАДНАННЯ[Щомісячні експлуатаційні витрати]","v":463.43280007691891},{"$f":"IFERROR((ОБЛАДНАННЯ[Початкова вартість]>0)*SLN(ОБЛАДНАННЯ[Початкова вартість],ОБЛАДНАННЯ[Очікувана вартість до кінцевого терміна договору],ОБЛАДНАННЯ[Термін позики\n(роки)]),0)","v":3166.6666666666665},{"$f":"IFERROR(ОБЛАДНАННЯ[Річна амортизація\n(пряма лінія)]/Кількість_місяців_у_році,0)","v":263.88888888888886},{"$f":"IFERROR(ОБЛАДНАННЯ[Початкова вартість]-(ОБЛАДНАННЯ[Річна амортизація\n(пряма лінія)]*((TODAY()-ОБЛАДНАННЯ[Дата придбання або оренди])/Кількість_днів_у_році)),0)","v":6669.8630136986303}]
[null,345,"Марка, модель 2","Відділення 1","Доступний","Інший",1,10000,2500,"2010-09-15",4,0.08,285,1000,{"$f":"IFERROR(SUMPRODUCT(--(DAY(ROW(OFFSET($A$1,,,DATE(YEAR(ОБЛАДНАННЯ[[#This Row],[Дата придбання або оренди]])+ОБЛАДНАННЯ[[#This Row],[Термін позики\n(роки)]],MONTH(ОБЛАДНАННЯ[[#This Row],[Дата придбання або оренди]])-1,DAY(ОБЛАДНАННЯ[[#This Row],[Дата придбання або оренди]]))-TODAY()))+DATE(YEAR(ОБЛАДНАННЯ[[#This Row],[Дата придбання або оренди]])+ОБЛАДНАННЯ[[#This Row],[Термін позики\n(роки)]],MONTH(ОБЛАДНАННЯ[[#This Row],[Дата придбання або оренди]]),DAY(ОБЛАДНАННЯ[[#This Row],[Дата придбання або оренди]]))-1)=DAY(ОБЛАДНАННЯ[[#This Row],[Дата придбання або оренди]]))),0)","v":20},{"$f":"IFERROR(-(ОБЛАДНАННЯ[Початкова вартість]>0)*(ОБЛАДНАННЯ[Початкова вартість]<>ОБЛАДНАННЯ[Перший внесок])*PMT(ОБЛАДНАННЯ[Кредитна ставка]/Кількість_місяців_у_році,ОБЛАДНАННЯ[Термін позики\n(роки)]*Кількість_місяців_у_році,ОБЛАДНАННЯ[Початкова вартість]-ОБЛАДНАННЯ[Перший внесок]),0)","v":183.09691756126861},{"$f":"ОБЛАДНАННЯ[[#This Row],[Щомісячний внесок]]+ОБЛАДНАННЯ[Щомісячні експлуатаційні витрати]","v":468.09691756126858},{"$f":"IFERROR((ОБЛАДНАННЯ[Початкова вартість]>0)*SLN(ОБЛАДНАННЯ[Початкова вартість],ОБЛАДНАННЯ[Очікувана вартість до кінцевого терміна договору],ОБЛАДНАННЯ[Термін позики\n(роки)]),0)","v":2250},{"$f":"IFERROR(ОБЛАДНАННЯ[Річна амортизація\n(пряма лінія)]/Кількість_місяців_у_році,0)","v":187.5},{"$f":"IFERROR(ОБЛАДНАННЯ[Початкова вартість]-(ОБЛАДНАННЯ[Річна амортизація\n(пряма лінія)]*((TODAY()-ОБЛАДНАННЯ[Дата придбання або оренди])/Кількість_днів_у_році)),0)","v":4772.6027397260277}]
[null,"Разом",null,null,null,null,{"$f":"SUBTOTAL(101,ОБЛАДНАННЯ[Кількість років експлуатації, які залишилися ])","v":3.3333333333333335},{"$f":"SUBTOTAL(109,ОБЛАДНАННЯ[Початкова вартість])","v":52500},{"$f":"SUBTOTAL(109,ОБЛАДНАННЯ[Перший внесок])","v":9000},null,{"$f":"SUBTOTAL(101,ОБЛАДНАННЯ[Термін позики\n(роки)])","v":3.6666666666666665},{"$f":"SUBTOTAL(101,ОБЛАДНАННЯ[Кредитна ставка])","v":8.5833333333333331E-2},{"$f":"SUBTOTAL(109,ОБЛАДНАННЯ[Щомісячні експлуатаційні витрати])","v":605},{"$f":"SUBTOTAL(109,ОБЛАДНАННЯ[Очікувана вартість до кінцевого терміна договору])","v":24000},{"$f":"SUBTOTAL(101,ОБЛАДНАННЯ[Щомісячні внески, які залишилися])","v":19},{"$f":"SUBTOTAL(109,ОБЛАДНАННЯ[Щомісячний внесок])","v":1160.5943035068672},{"$f":"SUBTOTAL(109,ОБЛАДНАННЯ[Загальні щомісячні витрати])","v":1765.5943035068672},{"$f":"SUBTOTAL(101,ОБЛАДНАННЯ[Річна амортизація\n(пряма лінія)])","v":2638.8888888888887},{"$f":"SUBTOTAL(101,ОБЛАДНАННЯ[Mісячна амортизація\n(пряма лінія)])","v":219.90740740740739},{"$f":"SUBTOTAL(109,ОБЛАДНАННЯ[Поточна вартість])","v":36469.863013698632}]

{"sheet":"Поле зведених даних","index":2,"n_rows":15,"n_cols":8,"rows_kept":15,"cut":false,"hidden":true,"merged":[]}
[null,"Поле зведених даних"]
[null,"Потрібно, щоб цей аркуш був прихований. Змінення структури зведеної таблиці може призвести до виникнення помилок у роботі роздільників приладної дошки."]
[]
[null,"Розташування","(усі)"]
[null,"Cтан","(усі)"]
[null,"Виробник","(усі)"]
[null,"Термін позики\n(роки)","(усі)"]
[null,"Опис елемента\n(марка та модель)","(усі)"]
[null,"Кількість років експлуатації, які залишилися ","(усі)"]
[]
[null,"Позначки рядків","Рахунок","Експлуатаційні витрати","Сума платежу","Загальні щомісячні витрати ","Щомісячний внесок ","Поточна вартість "]
[null,123,1,200,634.06458586867973,834.06458586867973,208.33333333333334,25047.945205479453]
[null,234,1,120,343.43280007691891,463.43280007691891,263.88888888888886,6695.8904109589048]
[null,345,1,285,183.09691756126861,468.09691756126858,187.5,4791.0958904109593]
[null,"Загальний підсумок",3,605,1160.5943035068672,1765.5943035068672,659.72222222222217,36534.931506849316]